bitfinex/quotes_SOLUSD_20250908
["timestamp","ask_amount","ask_price","bid_price","bid_amount"]
[1757356834215,0.06,215.23,215.2,0.27]
[1757356834427,0.06,215.23,215.22,4.64640832]
[1757356834813,0.06,215.23,215.21,0.27]
[1757356835124,0.77,215.23,215.22,35.96]
[1757356835533,0.06,215.23,215.18,30.6772601]
[1757356835852,0.06,215.23,215.22,35.94]
[1757356836752,0.77,215.23,215.22,35.94]
[1757356837254,13.59559401,215.22,215.18,26.03]
[1757356837551,0.71,215.21,215.19,35.94]
[1757356837754,14.20439517,215.22,215.19,35.94]
[1757356838140,0.71,215.21,215.19,35.94]
[1757356838848,14.20439517,215.22,215.19,35.94]
[1757356839057,0.06,215.23,215.19,40.58700935]
[1757356839352,0.66880116,215.23,215.19,40.58700935]
[1757356839561,0.66880116,215.23,215.19,40.85700935]
[1757356840060,0.66880116,215.23,215.19,40.58700935]
[1757356840244,0.06,215.23,215.19,40.85700935]
[1757356840651,0.06,215.23,215.19,40.58700935]
[1757356841159,0.06,215.23,215.2,0.27]
[1757356842241,0.06,215.23,215.19,40.58700935]
[1757356842642,0.06,215.23,215.19,40.85700935]
[1757356846559,0.06,215.23,215.2,0.27]
[1757356846731,0.06,215.23,215.21,66.54662422]
[1757356846929,0.06,215.23,215.21,30.64662422]
[1757356847245,0.06,215.23,215.22,35.9]
[1757356847851,0.06,215.23,215.22,40.54640832]
[1757356848043,0.06,215.23,215.22,40.81640832]
[1757356848240,0.06,215.23,215.22,40.54640832]
[1757356851064,0.06,215.23,215.22,35.9]
[1757356851572,0.06,215.23,215.22,40.54640832]
[1757356852755,0.06,215.23,215.22,40.81640832]
[1757356853070,0.06,215.23,215.22,40.54640832]
[1757356857248,0.06,215.23,215.22,35.9]
[1757356857578,0.06,215.23,215.22,61.86]
[1757356857754,0.78,215.23,215.22,61.86]
[1757356858467,0.78,215.23,215.22,26.0]
[1757356858664,0.78,215.23,215.22,35.86]
[1757356859463,0.06,215.23,215.22,35.86]
[1757356860576,0.06,215.23,215.22,40.50640832]
[1757356861984,0.06,215.23,215.22,40.77640832]
[1757356862174,0.06,215.23,215.22,40.50640832]
[1757356863590,0.06,215.23,215.22,40.77640832]
[1757356863886,1e-08,215.23,215.22,40.77640832]
[1757356864088,1e-08,215.26,215.25,26.0]
[1757356864251,0.06,215.28,215.25,62.43749128]
[1757356864455,0.06,215.28,215.27,4.64532912]
[1757356864652,0.06,215.28,215.27,40.52532912]
[1757356864848,0.78,215.38,215.3,26.0]
[1757356865061,0.78,215.37,215.31,35.88]
[1757356865451,0.72,215.36,215.31,35.88]
[1757356866758,1e-08,215.32,215.31,40.79446611]
[1757356869858,1e-08,215.35,215.34,26.0]
[1757356870058,0.06,215.37,215.34,26.0]
[1757356870059,1e-08,215.37,215.34,62.43725828]
[1757356870272,1e-08,215.37,215.35,0.27]
[1757356870462,1e-08,215.37,215.36,36.45720653]
[1757356870866,1e-08,215.37,215.36,36.72720653]
[1757356871068,1e-08,215.37,215.36,41.37059434]
[1757356871376,0.06,215.41,215.39,26.0]
[1757356871590,0.06,215.41,215.4,35.88]
[1757356871769,0.06,215.41,215.4,39.67582565]
[1757356871961,0.06,215.41,215.4,39.94582565]
[1757356872381,0.06,215.41,215.4,44.58835118]
[1757356872571,0.06,215.41,215.4,44.31835118]
[1757356875385,0.73,215.41,215.4,8.43835118]
[1757356875592,0.73,215.41,215.4,65.69582565]
[1757356875776,0.73,215.41,215.4,70.33835118]
[1757356876577,0.73,215.41,215.4,34.43835118]
[1757356876781,0.73,215.41,215.4,70.31835118]
[1757356877283,0.06,215.41,215.4,70.31835118]
[1757356877490,0.73,215.41,215.4,70.31835118]
[1757356878184,0.73,215.41,215.4,34.43835118]
[1757356878699,0.06,215.41,215.4,34.43835118]
[1757356878876,0.06,215.41,215.4,70.29835118]
[1757356879367,0.73,215.41,215.4,29.79582565]
[1757356879567,0.73,215.41,215.4,65.65582565]
[1757356880188,0.73,215.41,215.4,66.50252553]
[1757356881696,0.73,215.41,215.4,40.50252553]
[1757356882695,0.73,215.41,215.4,66.48252553]
[1757356882882,0.73,215.41,215.4,26.0]
[1757356883092,0.73,215.41,215.4,61.84]
[1757356883592,0.73,215.41,215.37,4.64314523]
[1757356883894,0.67,215.4,215.38,26.0]
[1757356884094,0.67,215.39,215.35,4.64343211]
[1757356884407,0.67,215.38,215.36,35.84]
[1757356884776,0.06,215.41,215.36,26.0]
[1757356884991,0.67,215.4,215.37,35.84]
[1757356885173,0.67,215.39,215.37,26.0]
[1757356885371,4.70231586,215.41,215.38,35.84]
[1757356885574,0.06,215.41,215.39,35.84]
[1757356885773,0.06,215.41,215.37,26.0]
[1757356885774,0.06,215.41,215.4,35.84]
[1757356886074,0.06,215.41,215.4,35.86]
[1757356887089,0.06,215.41,215.4,40.50252553]
[1757356887484,0.73,215.41,215.4,4.64252553]
[1757356887688,0.73,215.41,215.4,40.50252553]
[1757356888989,0.73,215.41,215.4,4.64252553]
[1757356889190,0.73,215.41,215.4,40.50252553]
[1757356891205,0.73,215.41,215.4,35.86]
[1757356891387,0.73,215.41,215.4,35.84]
[1757356894295,0.73,215.41,215.39,4.64269634]
[1757356894609,0.67,215.4,215.39,30.64269634]
[1757356894792,0.67,215.4,215.39,66.48269634]
[1757356895174,0.67,215.4,215.39,30.64269634]
[1757356895380,0.67,215.4,215.39,66.48269634]
[1757356896677,0.67,215.4,215.36,0.03]
[1757356896883,0.67,215.4,215.39,26.0]
[1757356897100,0.67,215.4,215.39,61.84]
[1757356898398,0.67,215.4,215.39,66.48274107]
[1757356900388,0.06,215.41,215.39,66.48274107]
[1757356900574,0.06,215.41,215.4,61.88]
[1757356901190,0.72,215.41,215.4,61.88]
[1757356904278,0.72,215.41,215.39,26.0]
[1757356904481,0.06,215.41,215.4,35.86]
[1757356905082,0.72,215.41,215.4,35.86]
[1757356907307,0.06,215.41,215.4,40.50252553]
[1757356907888,0.06,215.41,215.4,40.77252553]
[1757356909605,0.06,215.41,215.4,40.50252553]
[1757356910212,0.06,215.41,215.4,66.50252553]
[1757356910706,0.06,215.41,215.4,66.77252553]
[1757356911509,0.06,215.41,215.4,67.32962859]
[1757356912208,0.06,215.41,215.4,71.1029914]
[1757356912890,0.06,215.41,215.4,35.2429914]
[1757356913206,0.06,215.41,215.4,70.25588834]
[1757356913407,0.06,215.41,215.4,70.52588834]
[1757356915186,0.06,215.41,215.4,70.25588834]
[1757356920318,0.72,215.41,215.4,34.41588834]
[1757356920623,0.72,215.41,215.38,0.03]
[1757356920910,0.72,215.41,215.39,35.82]
[1757356921103,0.66,215.4,215.39,35.82]
[1757356921728,0.06,215.41,215.39,39.54741102]
[1757356921924,0.72,215.41,215.39,39.54741102]
[1757356922416,0.72,215.41,215.4,4.64252553]
[1757356922594,0.06,215.41,215.4,4.64252553]
[1757356923198,0.06,215.41,215.4,4.91252553]
[1757356923497,0.06,215.41,215.4,4.64252553]
[1757356923805,0.06,215.41,215.4,4.91252553]
[1757356925607,0.06,215.41,215.4,4.64252553]
[1757356925809,0.06,215.41,215.4,40.48252553]
[1757356929827,1e-08,215.41,215.4,40.75252553]
[1757356930718,1e-08,215.41,215.4,42.60880323]
[1757356931596,0.06,215.43,215.4,42.60880323]
[1757356931597,1e-08,215.43,215.42,26.0]
[1757356931809,1e-08,215.43,215.42,62.39705134]
[1757356932011,1e-08,215.43,215.42,62.66705134]
[1757356932520,1e-08,215.43,215.42,64.52307064]
[1757356932821,1e-08,215.44,215.42,64.52307064]
[1757356933120,1e-08,215.44,215.43,0.27]
[1757356933322,1e-08,215.44,215.42,67.30914585]
[1757356933512,1e-08,215.44,215.43,37.69593319]
[1757356933702,1e-08,215.44,215.43,42.33781222]
[1757356933901,1e-08,215.44,215.43,42.8948377]
[1757356934317,1e-08,215.44,215.43,43.1648377]
[1757356935017,1e-08,215.44,215.43,42.8948377]
[1757356938330,1e-08,215.44,215.43,43.1648377]
[1757356938831,1e-08,215.44,215.43,42.8948377]
[1757356942737,1e-08,215.44,215.43,7.0548377]
[1757356942910,0.71000001,215.44,215.43,42.8748377]
[1757356943111,0.71000001,215.44,215.43,42.31781222]
[1757356943310,1e-08,215.44,215.43,42.31781222]
[1757356943524,1e-08,215.44,215.43,42.8748377]
[1757356945029,1e-08,215.44,215.43,43.1448377]
[1757356945433,1e-08,215.44,215.43,56.74043171]
[1757356945946,1e-08,215.46,215.45,26.0]
[1757356946237,1e-08,215.46,215.45,62.37697377]
[1757356946929,1e-08,215.46,215.45,76.24256778]
[1757356947235,1e-08,215.46,215.45,82.78412733]
[1757356947739,1e-08,215.46,215.45,102.78412733]
[1757356947926,1e-08,215.46,215.45,102.22715356]
[1757356949719,1e-08,215.46,215.45,66.40715356]
[1757356950039,1e-08,215.46,215.45,66.96412733]
[1757356950238,1e-08,215.46,215.45,102.80412733]
[1757356950415,1e-08,215.46,215.45,102.24715356]
[1757356952344,1e-08,215.46,215.45,106.61860169]
[1757356953744,0.71000001,215.46,215.45,73.00300768]
[1757356953930,0.71000001,215.46,215.45,73.55998145]
[1757356954829,0.71000001,215.46,215.45,106.95998145]
[1757356955033,1e-08,215.46,215.45,106.40300768]
[1757356957139,1e-08,215.46,215.45,101.71695086]
[1757356957546,0.71000001,215.46,215.45,101.71695086]
[1757356957748,1e-08,215.46,215.45,101.71695086]
[1757356959337,1e-08,215.46,215.45,119.99860169]
[1757356959918,0.06,215.51,215.46,13.59559401]
[1757356960151,1e-08,215.52,215.5,26.0]
[1757356960341,1e-08,215.52,215.51,36.3768187]
[1757356960745,1e-08,215.53,215.51,36.3768187]
[1757356961141,1e-08,215.53,215.51,38.23206324]
[1757356961342,1e-08,215.54,215.53,26.0]
[1757356961548,1e-08,215.54,215.53,36.39676703]
[1757356962237,1e-08,215.54,215.53,38.25183949]
[1757356962436,0.06,215.62,215.56,26.0]
[1757356962634,0.06,215.62,215.57,35.82]
[1757356964137,0.06,215.62,215.58,4.63864922]
[1757356964542,0.78,215.59,215.58,4.63864922]
[1757356965727,0.78,215.59,215.55,26.0]
[1757356965948,0.72,215.58,215.55,26.0]
[1757356966152,0.06,215.59,215.58,26.0]
[1757356966332,0.06,215.59,215.58,61.82]
[1757356966645,0.78,215.59,215.58,61.82]
[1757356968054,0.78,215.59,215.58,61.8]
[1757356970527,0.78,215.59,215.58,35.78]
[1757356970743,5.41843406,215.59,215.58,35.78]
[1757356970934,5.41843406,215.59,215.54,0.03]
[1757356971231,6.02723522,215.59,215.55,35.8]
[1757356971446,13.59559401,215.57,215.54,0.03]
[1757356971639,4.97289226,215.55,215.54,0.03]
[1757356971842,4.97289226,215.55,215.54,16.41]
[1757356971843,5.58169342,215.55,215.54,16.41]
[1757356972039,1.32880116,215.55,215.54,16.41]
[1757356972645,5.35929482,215.55,215.54,16.41]
[1757356972931,5.35929482,215.55,215.54,0.03]
[1757356973125,18.95488883,215.55,215.54,0.03]
[1757356973364,18.95488883,215.55,215.54,24.31]
[1757356974538,14.31559401,215.55,215.54,24.31]
[1757356974738,0.72,215.55,215.54,24.31]
[1757356975244,0.72,215.57,215.54,28.94951006]
[1757356975438,0.72,215.56,215.54,28.94951006]
[1757356976756,0.06,215.59,215.57,26.0]
[1757356976952,0.06,215.59,215.55,0.68]
[1757356976953,0.06,215.59,215.58,35.84]
[1757356977251,0.06,215.59,215.58,36.52]
[1757356978049,0.06,215.59,215.58,67.15864922]
[1757356978368,0.06,215.59,215.58,30.63864922]
[1757356978856,0.06,215.59,215.58,66.49864922]
[1757356979352,0.06,215.59,215.54,0.03]
[1757356979562,0.72,215.58,215.57,26.0]
[1757356979941,0.06,215.59,215.57,26.0]
[1757356980157,0.78,215.59,215.58,35.86]
[1757356980559,0.06,215.59,215.58,35.86]
[1757356981057,0.78,215.59,215.58,35.86]
[1757356981432,0.06,215.59,215.58,35.86]
[1757356982249,0.78,215.59,215.58,35.86]
[1757356982848,0.06,215.59,215.58,35.86]
[1757356983958,0.78,215.59,215.57,26.0]
[1757356984156,0.78,215.59,215.58,35.86]
[1757356984342,0.06,215.59,215.58,35.86]
[1757356984743,0.78,215.59,215.58,35.86]
[1757356985153,0.78,215.59,215.54,26.03]
[1757356985344,0.72,215.58,215.55,35.86]
[1757356985537,0.72,215.57,215.54,0.03]
[1757356985734,0.72,215.57,215.56,35.84]
[1757356988570,0.78,215.59,215.56,35.84]
[1757356988749,0.72,215.58,215.56,35.84]
[1757356989553,0.72,215.57,215.56,35.84]
[1757356989758,14.37559401,215.59,215.56,35.84]
[1757356990066,0.72,215.58,215.56,35.84]
[1757356990463,0.06,215.59,215.57,0.69]
[1757356991952,0.06,215.59,215.58,0.69]
[1757356992266,0.06,215.59,215.58,35.84]
[1757356992672,0.06,215.59,215.55,4.63922457]
[1757356992968,0.06,215.59,215.58,35.86]
[1757356993361,14.35559401,215.59,215.58,35.86]
[1757356994573,13.59559401,215.58,215.54,4.66946642]
[1757356994758,14.29559401,215.58,215.55,35.84]
[1757356995957,14.29559401,215.57,215.56,35.84]
[1757356997367,13.59559401,215.57,215.56,35.84]
[1757356997542,13.65559401,215.59,215.56,40.4790796]
[1757356997744,14.35559401,215.59,215.56,35.84]
[1757356997960,0.06,215.59,215.56,41.16905221]
[1757356998160,0.06,215.59,215.56,40.47905221]
[1757356998471,0.06,215.59,215.58,4.63864922]
[1757356998865,0.06,215.59,215.58,5.32864922]
[1757357000573,0.06,215.59,215.58,0.69]
[1757357000881,0.06,215.59,215.58,5.32864922]
[1757357001168,0.06,215.59,215.57,4.63885551]
[1757357001373,0.06,215.59,215.56,36.53]
[1757357001780,0.06,215.59,215.57,35.84]
[1757357002275,13.59559401,215.57,215.54,0.03]
[1757357002457,13.59559401,215.57,215.55,35.84]
[1757357003279,13.59559401,215.58,215.54,0.03]
[1757357003481,14.29559401,215.56,215.55,35.86]
[1757357003683,13.59559401,215.55,215.54,0.03]
[1757357003863,14.29559401,215.55,215.54,0.03]
[1757357004173,14.29559401,215.55,215.54,35.89]
[1757357005270,13.59559401,215.55,215.54,35.89]
[1757357007458,13.59559401,215.58,215.54,36.58]
[1757357007778,13.59559401,215.58,215.54,41.2195044]
[1757357007955,13.59559401,215.58,215.55,0.69]
[1757357008967,13.59559401,215.58,215.54,40.5295044]
[1757357009284,13.59559401,215.58,215.54,41.2195044]
[1757357009982,14.29559401,215.58,215.54,40.5295044]
[1757357010353,14.29559401,215.58,215.54,41.2195044]
[1757357010778,14.29559401,215.58,215.54,36.58]
[1757357011278,13.59559401,215.58,215.54,40.52946182]
[1757357011461,134.56,215.59,215.55,0.69]
[1757357011968,134.56,215.59,215.56,0.69]
[1757357012172,134.56,215.59,215.57,35.84]
[1757357012564,0.06,215.59,215.58,0.69]
[1757357014163,0.06,215.59,215.57,40.47870761]
[1757357014389,0.06,215.59,215.57,41.16883712]
[1757357014771,0.06,215.59,215.58,35.84]
[1757357015081,0.06,215.59,215.58,36.53]
[1757357015762,0.06,215.59,215.58,35.84]
[1757357016171,0.06,215.59,215.58,40.47864922]
[1757357016482,0.06,215.59,215.58,41.16864922]
[1757357017063,0.06,215.59,215.58,35.84]
[1757357017269,0.06,215.59,215.58,35.82]
[1757357017270,0.76,215.59,215.58,35.82]
[1757357017471,0.06,215.59,215.58,35.82]
[1757357018661,0.06,215.59,215.57,4.63876495]
[1757357018867,0.06,215.59,215.58,35.82]
[1757357019870,0.06,215.59,215.58,36.51]
[1757357020071,0.06,215.59,215.58,35.82]
[1757357020279,0.06,215.59,215.58,36.52]
[1757357021991,0.06,215.59,215.58,35.82]
[1757357024088,0.06,215.59,215.58,40.17898217]
[1757357024291,0.06,215.59,215.58,44.81763139]
[1757357029090,0.06,215.59,215.58,44.79763139]
[1757357030190,0.06,215.59,215.58,8.99763139]
[1757357030398,0.06,215.59,215.58,44.79763139]
[1757357031999,0.06,215.59,215.58,61.78]
[1757357032174,0.06,215.59,215.58,66.41864922]
[1757357032677,0.06,215.59,215.58,61.78]
[1757357033315,0.06,215.59,215.58,66.41864922]
[1757357033777,0.06,215.59,215.58,67.11864922]
[1757357034499,0.06,215.59,215.58,62.48]
[1757357034700,0.06,215.59,215.58,67.11864922]
[1757357034903,0.06,215.59,215.58,61.78]
[1757357035087,0.06,215.59,215.58,66.41864922]
[1757357035480,0.06,215.59,215.58,30.63864922]
[1757357035684,0.06,215.59,215.58,61.76]
[1757357036387,0.06,215.59,215.58,35.76]
[1757357036587,0.06,215.59,215.58,40.39864922]
[1757357039110,0.06,215.59,215.58,35.76]
[1757357039406,14.34559401,215.59,215.58,35.76]
[1757357041520,0.06,215.59,215.58,35.76]
[1757357041826,0.06,215.59,215.58,41.09864922]
[1757357043587,0.06,215.59,215.58,26.0]
[1757357044003,0.06,215.59,215.58,61.74]
[1757357044885,0.06,215.59,215.58,66.37864922]
[1757357045085,0.06,215.59,215.58,67.07864922]
[1757357050193,0.06,215.59,215.58,30.63864922]
[1757357050397,0.06,215.59,215.58,67.07864922]
[1757357050713,0.06,215.59,215.58,30.63864922]
[1757357050916,0.06,215.59,215.58,61.74]
[1757357051117,0.06,215.59,215.58,66.37864922]
[1757357051613,0.06,215.59,215.58,26.0]
[1757357051817,0.77,215.59,215.58,26.0]
[1757357052011,0.77,215.59,215.58,35.74]
[1757357052512,0.06,215.59,215.58,35.74]
[1757357052704,0.06,215.59,215.58,36.44]
[1757357053205,0.06,215.59,215.58,40.37864922]
[1757357053614,0.06,215.59,215.58,41.07864922]
[1757357053816,0.06,215.59,215.58,40.37864922]
[1757357054113,0.06,215.59,215.58,35.74]
[1757357054326,0.06,215.59,215.58,30.63864922]
[1757357054499,0.06,215.59,215.58,40.37864922]
[1757357056613,0.06,215.59,215.58,35.74]
[1757357057222,0.06,215.59,215.57,4.63884997]
[1757357057417,0.77,215.59,215.58,35.74]
[1757357058120,0.06,215.59,215.58,35.74]
[1757357060212,0.06,215.59,215.56,5.3390472]
[1757357060415,0.06,215.59,215.57,35.74]
[1757357060723,0.06,215.59,215.58,35.74]
[1757357064364,0.06,215.59,215.58,41.07864922]
[1757357067234,0.71,215.66,215.61,26.0]
[1757357067408,0.71,215.66,215.62,35.74]
[1757357068013,5.54650042,215.68,215.62,36.44]
[1757357068428,5.54650042,215.68,215.63,4.63757362]
[1757357068631,5.54650042,215.68,215.62,36.44]
[1757357068632,0.71,215.67,215.64,35.74]
[1757357068932,0.71,215.67,215.62,5.33774619]
[1757357069132,0.71,215.67,215.63,35.74]
[1757357072227,5.34671902,215.67,215.63,35.74]
[1757357072431,0.71,215.66,215.64,35.74]
[1757357072642,4.63671902,215.67,215.65,35.74]
[1757357073229,5.34671902,215.67,215.65,35.74]
[1757357073428,5.34671902,215.67,215.61,31.3379634]
[1757357073831,5.34671902,215.67,215.62,35.74]
[1757357074142,5.34671902,215.67,215.62,36.44]
[1757357074525,0.71,215.67,215.62,0.7]
[1757357074725,0.71,215.67,215.63,35.74]
[1757357075831,0.71,215.67,215.64,35.74]
[1757357076539,13.59559401,215.67,215.64,35.74]
[1757357077547,14.30559401,215.67,215.64,35.74]
[1757357078843,14.30559401,215.67,215.64,36.44]
[1757357079938,0.2,215.68,215.64,40.37729874]
[1757357080137,14.46559401,215.68,215.64,36.41]
[1757357080340,19.10210194,215.68,215.64,36.41]
[1757357080659,0.67,215.67,215.64,35.74]
[1757357081042,18.43210194,215.68,215.64,35.74]
[1757357081356,19.10210194,215.68,215.64,36.41]
[1757357082330,14.46559401,215.68,215.64,35.74]
[1757357082544,14.46559401,215.68,215.65,0.67]
[1757357082849,14.46559401,215.68,215.66,35.72]
[1757357083554,13.79559401,215.68,215.66,35.72]
[1757357089058,0.67,215.67,215.63,0.67]
[1757357089261,0.67,215.67,215.64,35.72]
[1757357089455,6.11541229,215.68,215.64,0.67]
[1757357089759,0.67,215.67,215.64,0.67]
[1757357089937,5.30683941,215.67,215.62,0.67]
[1757357090144,5.30683941,215.67,215.61,30.6378125]
[1757357090145,5.30683941,215.67,215.63,0.67]
[1757357090536,14.26559401,215.66,215.61,30.6378125]
[1757357090755,14.26559401,215.66,215.62,0.67]
[1757357091261,14.87439517,215.66,215.63,35.72]
[1757357091444,14.26559401,215.66,215.62,0.67]
[1757357091957,14.26559401,215.66,215.63,35.72]
[1757357092664,14.26559401,215.66,215.63,36.39]
[1757357093462,18.9023075,215.67,215.63,36.39]
[1757357093856,18.2323075,215.67,215.63,36.39]
[1757357094058,0.67,215.66,215.63,36.39]
[1757357094854,18.9023075,215.67,215.63,36.39]
[1757357095448,18.9023075,215.67,215.63,0.67]
[1757357096153,18.9023075,215.67,215.64,35.72]
[1757357096870,5.3070602,215.66,215.61,26.0]
[1757357097058,0.67,215.65,215.62,62.39]
[1757357097367,5.24586136,215.66,215.63,35.72]
[1757357097554,5.91586136,215.66,215.64,35.72]
[1757357098062,5.3070602,215.66,215.64,35.72]
[1757357098557,5.3070602,215.66,215.62,26.67]
[1757357098751,5.3070602,215.66,215.63,36.39]
[1757357099550,5.3070602,215.66,215.64,35.72]
[1757357100570,18.23278303,215.65,215.63,0.67]
[1757357100772,18.23278303,215.65,215.64,35.72]
[1757357102268,22.68884252,215.65,215.59,13.91368875]
[1757357102470,0.67,215.64,215.6,35.72]
[1757357102676,13.59559401,215.62,215.6,35.72]
[1757357102873,13.91627044,215.64,215.61,0.67]
[1757357103065,13.59559401,215.65,215.61,0.67]
[1757357103659,13.59559401,215.65,215.64,0.03]
[1757357103962,13.59559401,215.65,215.64,36.42]
[1757357104385,13.59559401,215.66,215.64,36.42]
[1757357104678,13.79559401,215.68,215.65,0.67]
[1757357104967,19.10213705,215.68,215.64,35.75]
[1757357105270,18.43213705,215.68,215.65,0.67]
[1757357105769,13.79559401,215.68,215.65,0.67]
[1757357106170,14.46559401,215.68,215.64,4.33734148]
[1757357106569,14.46559401,215.68,215.63,4.63757362]
[1757357106871,0.2,215.68,215.63,4.63757362]
[1757357107077,0.87,215.68,215.63,4.63757362]
[1757357107368,0.87,215.68,215.64,35.72]
[1757357107574,0.87,215.68,215.62,17.54945319]
[1757357107775,1.27880116,215.67,215.62,12.91175311]
[1757357107952,0.67,215.66,215.61,4.66795602]
[1757357108157,0.67,215.65,215.61,18.24970913]
[1757357108374,5.44532252,215.68,215.62,0.67]
[1757357108564,0.67,215.67,215.62,0.67]
[1757357108872,0.67,215.67,215.63,36.39]
[1757357110472,5.3067689,215.67,215.63,0.67]
[1757357110651,5.3067689,215.67,215.64,35.72]
[1757357111055,0.66,215.66,215.64,35.72]
[1757357111665,4.6367689,215.67,215.64,35.72]
[1757357111860,3.17725833,215.65,215.63,35.72]
[1757357112176,4.44605949,215.64,215.63,35.72]
[1757357112576,1.26880116,215.64,215.63,35.72]
[1757357112749,4.74072046,215.64,215.63,35.72]
[1757357112950,0.60880116,215.66,215.63,36.4]
[1757357113171,13.59559401,215.66,215.65,26.0]
[1757357113379,0.2,215.68,215.66,26.0]
[1757357113563,0.2,215.68,215.67,61.72]
[1757357113753,0.2,215.68,215.67,62.4]
[1757357113950,0.2,215.68,215.67,67.03671349]
[1757357114863,0.2,215.68,215.67,31.31671349]
[1757357115064,0.2,215.68,215.67,67.03671349]
[1757357115477,0.2,215.68,215.67,31.31671349]
[1757357115664,0.2,215.68,215.67,67.03671349]
[1757357117780,0.2,215.68,215.67,80.6923075]
[1757357119986,0.2,215.68,215.67,54.6923075]
[1757357120286,0.2,215.68,215.67,55.24871311]
[1757357120468,0.2,215.68,215.67,54.6923075]
[1757357121196,0.2,215.68,215.67,18.9723075]
[1757357121483,0.2,215.68,215.67,54.6723075]
[1757357122576,0.2,215.68,215.67,88.26790151]
[1757357122968,0.05099713,215.68,215.67,88.26790151]
[1757357125183,0.06,215.71,215.7,13.59559401]
[1757357125367,0.06,215.71,215.7,49.29559401]
[1757357125566,0.06,215.71,215.7,49.97559401]
[1757357125882,0.06,215.71,215.7,51.8290333]
[1757357126387,0.06,215.71,215.7,56.46510191]
[1757357126564,0.06,215.71,215.7,20.76510191]
[1757357126765,0.06,215.71,215.7,56.46510191]
[1757357127392,1e-08,215.71,215.7,56.46510191]
[1757357127879,1e-08,215.71,215.7,61.09977923]
[1757357128078,1e-08,215.71,215.7,42.8695079]
[1757357128991,1e-08,215.71,215.7,6.4895079]
[1757357129188,1e-08,215.71,215.7,42.1895079]
[1757357129567,1e-08,215.71,215.7,6.4895079]
[1757357129767,1e-08,215.71,215.7,42.1895079]
[1757357129979,1e-08,215.71,215.7,42.8695079]
[1757357130586,1e-08,215.71,215.7,42.8895079]
[1757357132499,1e-08,215.73,215.72,26.0]
[1757357132795,1e-08,215.73,215.72,62.25627665]
[1757357133083,1e-08,215.73,215.72,64.78963006]
[1757357133669,1e-08,215.73,215.72,69.42526885]
[1757357134359,1e-08,215.73,215.72,68.8689922]
[1757357134977,1e-08,215.73,215.72,68.1889922]
[1757357135174,1e-08,215.73,215.72,32.4889922]
[1757357135379,1e-08,215.73,215.72,68.1889922]
[1757357135981,1e-08,215.73,215.72,68.8689922]
[1757357138493,1e-08,215.73,215.72,68.8489922]
[1757357139072,1e-08,215.73,215.72,68.1689922]
[1757357139985,0.66000001,215.73,215.72,68.1689922]
[1757357140299,0.66000001,215.73,215.72,32.4889922]
[1757357140472,0.66000001,215.73,215.72,68.1689922]
[1757357140674,0.66000001,215.73,215.72,32.4889922]
[1757357140974,0.66000001,215.73,215.72,42.1689922]
[1757357143985,0.66000001,215.73,215.72,6.4889922]
[1757357144191,0.66000001,215.73,215.72,42.1689922]
[1757357144982,0.66000001,215.73,215.72,68.1689922]